fUSD/lending_fUSD_20260329
["ID","MTS","AMOUNT","RATE_DAILY","PERIOD"]
[419036896,1774798250509,-151.0,0.00015068,2]
[419036897,1774798250769,-888.83,0.00015068,2]
[419036898,1774798250780,-1276.62,0.00015068,2]
[419036899,1774798250791,-680.23,0.00015068,2]
[419036900,1774798250801,-3139.53398762,0.00015108,2]
[419036901,1774798250812,-999.41588938,0.00015117,2]
[419036902,1774798250821,-4612.73,0.000152,2]
[419036903,1774798250831,-20289.73,0.000152,2]
[419036904,1774798250841,-4789.28,0.000152,2]
[419036905,1774798250851,-4373.32,0.000152,2]
[419036906,1774798250860,-1523.91,0.000152,2]
[419036907,1774798250869,-3286.49,0.000152,2]
[419036908,1774798250879,-1570.0,0.000152,2]
[419036909,1774798250889,-1286.077151,0.000152,2]
[419036910,1774798250900,-1286.077151,0.000152,2]
[419036911,1774798250910,-1286.077151,0.000152,2]
[419036912,1774798250921,-1286.077151,0.000152,2]
[419036913,1774798250931,-991.57734,0.000152,2]
[419036914,1774798250940,-371.288842,0.000152,2]
[419036915,1774798250950,-1000.0,0.00015203,2]
[419036916,1774798250960,-10000.0,0.00015205,2]
[419036917,1774798250970,-2598.07382927,0.00015228,2]
[419036918,1774798250979,-1000.0,0.00015232,2]
[419036919,1774798250989,-1000.0,0.00015242,2]
[419036920,1774798250998,-1776.30922209,0.00015285,2]
[419036921,1774798251008,-151.0,0.00015285,2]
[419036922,1774798251017,-260.4103811,0.00015285,2]
[419036923,1774798251027,-209.57457372,0.00015285,2]
[419036924,1774798251036,-200.0,0.00015285,2]
[419036925,1774798251046,-260.4103811,0.00015285,2]
[419036926,1774798251056,-348.0827721,0.00015285,2]
[419036927,1774798251066,-365.89890395,0.000153,2]
[419036928,1774798251076,-322.92014536,0.000153,2]
[419036929,1774798251085,-157.9582,0.00015307,2]
[419036930,1774798251096,-1000.0,0.00015311,2]
[419036931,1774798251106,-1000.0,0.00015331,2]
[419036932,1774798251116,-1152.0,0.00015341,2]
[419036933,1774798251126,-2000.0,0.00015342,2]
[419036934,1774798251136,-510.44418561,0.00015342,2]
[419036935,1774798251146,-2000.0,0.00015342,2]
[419036936,1774798251156,-2000.0,0.00015342,2]
[419036937,1774798251165,-1500.0,0.00015342,2]
[419036938,1774798251175,-471.18842002,0.00015342,2]
[419036939,1774798251185,-1725.66563804,0.00015342,2]
[419036940,1774798251195,-2000.0,0.00015342,2]
[419036941,1774798251205,-2083.85118063,0.00015342,2]
[419036942,1774798251214,-2000.0,0.00015342,2]
[419036943,1774798251225,-2800.0,0.0001536,2]
[419036944,1774798251235,-4609.0,0.00015372,2]
[419036945,1774798251245,-1000.0,0.00015381,2]
[419036946,1774798251254,-218.77,0.00015389,2]
[419036947,1774798251264,-1000.0,0.00015398,2]
[419036948,1774798251274,-1000.0,0.00015405,2]
[419036949,1774798251284,-1615.9,0.00015429,2]
[419036950,1774798251294,-1116.1796276,0.00015465,2]
[419036951,1774798251303,-133043.6582009,0.00015465,2]
[419036952,1774798251313,-4569.7215536,0.00015465,2]
[419036953,1774798251323,-462024.0548981,0.00015465,2]
[419036954,1774798251333,-1189.605376,0.00015465,2]
[419036955,1774798251343,-1189.605376,0.00015465,2]
[419036956,1774798251353,-1189.605376,0.00015465,2]
[419036957,1774798251363,-1189.60538,0.00015465,2]
[419036958,1774798251373,-166.66,0.00015474,2]
[419036959,1774798251383,-1000.0,0.00015483,2]
[419036960,1774798251392,-1000.0,0.00015483,2]
[419036961,1774798251403,-1252.0,0.00015492,2]
[419036962,1774798251413,-1000.0,0.00015499,2]
[419036963,1774798251422,-2003.48418562,0.000155,3]
[419036964,1774798251432,-4000.0,0.00015507,2]
[419036965,1774798251442,-1600.0,0.00015535,2]
[419036966,1774798251452,-1000.0,0.00015558,2]
[419036967,1774798251462,-157.9582,0.00015589,2]
[419036968,1774798251471,-151.0,0.00015592,2]
[419036969,1774798251481,-151.0,0.00015592,2]
[419036970,1774798251490,-151.0,0.00015592,2]
[419036971,1774798251500,-1286.077151,0.00015592,2]
[419036972,1774798251510,-1286.077151,0.00015592,2]
[419036973,1774798251520,-1286.077151,0.00015592,2]
[419036974,1774798251530,-1286.077151,0.00015592,2]
[419036975,1774798251540,-151.0,0.00015592,2]
[419036976,1774798251550,-151.0,0.00015595,2]
[419036977,1774798251560,-1000.0,0.00015597,2]
[419036978,1774798251571,-338.9532,0.000156,2]
[419036979,1774798251581,-3400.0,0.000156,5]
[419036980,1774798251591,-900.0,0.000156,5]
[419036981,1774798251604,-700.0,0.000156,5]
[419036982,1774798251614,-1000.0,0.00015619,2]
[419036983,1774798251624,-1000.0,0.00015623,2]
[419036984,1774798251634,-1000.0,0.00015625,2]
[419036985,1774798251644,-732.73812256,0.00015634,2]
[419036986,1774798251654,-3000.0,0.00015634,2]
[419036987,1774798251664,-1000.0,0.00015651,2]
[419036988,1774798251674,-6990.41226568,0.0001568,2]
[419036989,1774798251683,-3400.0,0.000157,5]
[419036990,1774798251693,-900.0,0.000157,5]
[419036991,1774798251704,-700.0,0.000157,5]
[419036992,1774798251713,-2000.0,0.00015737,2]
[419036993,1774798251723,-1000.0,0.0001575,2]
[419036994,1774798251733,-1276.62,0.00015753,2]
[419036995,1774798251743,-1000.0,0.00015766,2]
[419036996,1774798251754,-1000.0,0.00015777,2]
[419036997,1774798251764,-1000.0,0.00015783,2]
[419036998,1774798251773,-1000.0,0.0001579,2]
[419036999,1774798251783,-1000.0,0.00015795,2]
[419037000,1774798251792,-3400.0,0.000158,5]
[419037001,1774798251802,-900.0,0.000158,5]
[419037002,1774798251813,-700.0,0.000158,5]
[419037003,1774798251822,-1000.0,0.00015803,2]
[419037004,1774798251832,-1000.0,0.00015811,2]
[419037005,1774798251843,-1000.0,0.00015813,2]
[419037006,1774798251852,-1842.03266331,0.00015833,2]
[419037007,1774798251862,-151.0,0.00015833,2]
[419037008,1774798251872,-402.8201483,0.00015833,2]
[419037009,1774798251881,-200.0,0.00015833,2]
[419037010,1774798251892,-270.0455652,0.00015833,2]
[419037011,1774798251902,-221.74256129,0.00015833,2]
[419037012,1774798251912,-1045.0,0.00015865,2]
[419037013,1774798251922,-842.0,0.00015865,2]
[419037014,1774798251931,-1959.0,0.00015865,2]
[419037015,1774798251942,-1224.0,0.00015865,2]
[419037016,1774798251952,-1041.0,0.00015865,2]
[419037017,1774798251961,-7765.0,0.00015865,2]
[419037018,1774798251971,-2032.0,0.00015865,2]
[419037019,1774798251981,-1000.0,0.00015876,2]
[419037020,1774798251991,-5888.0,0.00015879,2]
[419037021,1774798252000,-1000.0,0.00015888,2]
[419037022,1774798252010,-2000.0,0.0001589,2]
[419037023,1774798252020,-2500.0,0.0001589,2]
[419037024,1774798252030,-257.40227596,0.0001589,2]
[419037025,1774798252040,-504.43813318,0.0001589,2]
[419037026,1774798252050,-2500.0,0.0001589,2]
[419037027,1774798252061,-157.9582,0.00015892,2]
[419037028,1774798252071,-4000.0,0.00015895,2]
[419037029,1774798252081,-1000.0,0.00015897,2]
[419037030,1774798252091,-500.0,0.00015899,2]
[419037031,1774798252101,-500.0,0.00015899,2]
[419037032,1774798252112,-425.59309314,0.00015899,2]
[419037033,1774798252128,-20210.25894818,0.000159,2]
[419037034,1774798252139,-132966.02436532,0.000159,2]
[419037035,1774798252150,-150.0,0.000159,2]
[419037036,1774798252161,-157.0,0.000159,2]
[419037037,1774798252172,-157.0,0.000159,3]
[419037038,1774798252184,-157.0,0.000159,3]
[419037039,1774798252195,-157.0,0.000159,3]
[419037040,1774798252206,-159.0,0.000159,2]
[419037041,1774798252216,-150.0,0.000159,2]
[419037042,1774798252227,-3753.0,0.000159,5]
[419037043,1774798252238,-2598.07382927,0.000159,2]
[419037044,1774798252248,-1400.0,0.000159,5]
[419037045,1774798252259,-999.41588938,0.000159,2]
[419037046,1774798252269,-1300.0,0.000159,5]
[419037047,1774798252279,-3835.20744626,0.0001596,2]
[419037048,1774798252291,-1000.0,0.00015977,2]
[419037049,1774798252302,-1000.0,0.00015993,2]
[419037050,1774798252312,-1000.0,0.00015995,2]
[419037051,1774798252323,-157.9582,0.00015997,2]
[419037052,1774798252333,-157.9582,0.00015997,2]
[419037053,1774798252344,-157.9582,0.00015997,2]
[419037054,1774798252354,-157.9582,0.00015997,2]
[419037055,1774798252364,-157.9582,0.00015997,2]
[419037056,1774798252374,-157.9582,0.00015997,2]
[419037057,1774798252385,-157.9582,0.00015997,2]
[419037058,1774798252395,-157.9582,0.00015997,2]
[419037059,1774798252405,-157.9582,0.00015997,2]
[419037060,1774798252416,-157.9582,0.00015997,2]
[419037061,1774798252426,-157.9582,0.00015997,2]
[419037062,1774798252436,-157.9582,0.00015997,2]
[419037063,1774798252446,-157.9582,0.00015997,2]
[419037064,1774798252457,-157.9582,0.00015997,2]
[419037065,1774798252468,-157.9582,0.00015997,2]
[419037066,1774798252478,-157.95820695,0.00015997,2]
[419037067,1774798252489,-484.77607682,0.00015999,2]
[419037068,1774798252499,-3091978.38438168,0.00016,2]
[419037069,1774798252508,-2497547.35653301,0.00016,2]
[419037070,1774798253684,-381.56072102,0.00016,2]
[419037071,1774798254806,-963.2525,0.00011198,2]
[419037072,1774798254857,-36.7475,0.00011198,2]
[419037073,1774798254867,-250.0,0.00011368,2]
[419037074,1774798254878,-418.50772781,0.00011997,2]
[419037075,1774798254887,-1050.151,0.00013674,2]
[419037076,1774798254897,-151.0,0.00013808,2]
[419037077,1774798254907,-401.02069311,0.000159,2]
[419037078,1774798254917,-8506.95252679,0.00016,2]
[419037079,1774798254933,-4590.1693,0.00016,2]
[419037080,1774798254945,-398.28,0.00016,2]
[419037081,1774798255040,-409.54164869,0.00016,2]
[419037082,1774798255063,-1292.81052465,0.00016,2]
[419037083,1774798270056,165.0,0.0002555,120]
[419037084,1774798508908,172.0,0.0002555,120]
[419037085,1774798511647,200.0,0.00010212,2]
[419037086,1774798551855,1600.0,0.00010192,2]
[419037088,1774798644485,500.0,0.00023,120]
[419037089,1774798645202,658.81759487,0.00023,120]
[419037090,1774798645228,500.0,0.00023,120]
[419037091,1774798645254,500.0,0.00023,120]
[419037092,1774798646254,500.0,0.00023,120]
[419037093,1774798646281,500.0,0.00023,120]
[419037094,1774798646428,500.0,0.00023,120]
[419037095,1774798646468,500.0,0.00023,120]
[419037096,1774798646803,500.0,0.00023,120]
[419037097,1774798647049,500.0,0.00023,120]
[419037098,1774798647256,500.0,0.00023,120]
[419037099,1774798647563,500.0,0.00023,120]
[419037100,1774798647759,500.0,0.00023,120]
[419037101,1774798648086,500.0,0.00023,120]
[419037102,1774798648232,681.1162641,0.00023,120]
[419037103,1774798648528,500.0,0.00023,120]
[419037104,1774798649191,969.51261322,0.00023,120]
[419037105,1774798649547,500.0,0.00023,120]
[419037106,1774798650017,500.0,0.00023,120]
[419037107,1774798650489,500.0,0.00023,120]
[419037108,1774798650653,500.0,0.00023,120]
[419037109,1774798651100,500.0,0.00023,120]
[419037110,1774798651455,500.0,0.00023,120]
[419037111,1774798651493,500.0,0.00023,120]
[419037112,1774798651575,500.0,0.00023,120]
[419037113,1774798651901,500.0,0.00023,120]
[419037114,1774798651943,500.0,0.00023,120]
[419037115,1774798652040,500.0,0.00023,120]
[419037116,1774798652381,500.0,0.00023,120]
[419037117,1774798652465,500.0,0.00023,120]
[419037118,1774798652528,793.73531431,0.00023,120]
[419037119,1774798652821,500.0,0.00023,120]
[419037120,1774798653049,890.54443749,0.00023,120]
[419037121,1774798653293,500.0,0.00023,120]
[419037122,1774798653791,500.0,0.00023,120]
[419037123,1774798654280,500.0,0.00023,120]
[419037124,1774798654613,500.0,0.00023,120]
[419037125,1774798654761,500.0,0.00023,120]
[419037126,1774798655079,618.60789645,0.00023,120]
[419037127,1774798655135,156.64764003,0.00023,120]
[419037128,1774798655233,500.0,0.00023,120]
[419037129,1774798655704,791.83963039,0.00023,120]
[419037130,1774798655736,500.0,0.00023,120]
[419037131,1774798657550,500.0,0.00023,120]
[419037132,1774798657791,500.0,0.00023,120]
[419037133,1774798658073,500.0,0.00023,120]
[419037134,1774798658586,500.0,0.00023,120]
[419037135,1774798659022,500.0,0.00023,120]
[419037136,1774798659488,500.0,0.00023,120]
[419037137,1774798659923,500.0,0.00023,120]
[419037138,1774798660383,500.0,0.00023,120]
[419037139,1774798660847,500.0,0.00023,120]
[419037140,1774798661780,500.0,0.00023,120]
[419037141,1774798662219,500.0,0.00023,120]
[419037142,1774798662794,500.0,0.00023,120]
[419037143,1774798663240,500.0,0.00023,120]
[419037144,1774798663717,500.0,0.00023,120]
[419037145,1774798664185,500.0,0.00023,120]
[419037146,1774798664645,500.0,0.00023,120]
[419037147,1774798665100,500.0,0.00023,120]
[419037148,1774798665577,500.0,0.00023,120]
[419037149,1774798666528,500.0,0.00023,120]
[419037150,1774798667007,500.0,0.00023,120]
[419037151,1774798668594,500.0,0.00023,120]
[419037152,1774798668700,500.0,0.00023,120]
[419037153,1774798668768,367.48114626,0.0002555,120]
[419037154,1774798668842,500.0,0.00023,120]
[419037155,1774798668929,500.0,0.00023,120]
[419037156,1774798669585,991.75044406,0.00023,120]
[419037157,1774798677591,166.96,0.00024985,120]
[419037158,1774798681654,300.0,0.00010499,2]
[419037159,1774798741615,300.0,0.00010499,2]
[419037160,1774798742964,300.0,0.00010499,2]
[419037161,1774798801377,1200.0,0.00010499,2]
[419037162,1774798813242,707.0,0.00022343,120]
[419037163,1774798815515,707.0,0.0002346,120]
[419037164,1774798815922,707.0,0.00024633,120]
[419037165,1774798817941,166.0,0.0002555,120]
[419037166,1774798817992,152.0,0.0002555,120]
[419037167,1774798818436,166.0,0.0002555,120]
[419037168,1774798818535,152.0,0.0002555,120]
[419037169,1774798819345,166.0,0.0002555,120]
[419037170,1774798819438,152.0,0.0002555,120]
[419037171,1774798819886,166.0,0.0002555,120]
[419037172,1774798819954,152.0,0.0002555,120]
[419037173,1774798820388,166.0,0.0002555,120]
[419037174,1774798820488,152.0,0.0002555,120]
[419037175,1774798820902,166.0,0.0002555,120]
[419037176,1774798820995,152.0,0.0002555,120]
[419037177,1774798821445,166.0,0.0002555,120]
[419037178,1774798821540,152.0,0.0002555,120]
[419037179,1774798821950,172.0,0.0002555,120]
[419037180,1774798822060,152.0,0.0002555,120]
[419037181,1774798822581,152.0,0.0002555,120]
[419037182,1774798823121,152.0,0.0002555,120]
[419037183,1774798823638,152.0,0.0002555,120]
[419037184,1774798824572,152.0,0.0002555,120]
[419037185,1774798825082,152.0,0.0002555,120]
[419037186,1774798826901,224.32253033,0.0002555,120]
[419037946,1774798940724,489.19639129,0.00023,120]
[419037947,1774798940747,11.50360871,0.00023,120]
[419037948,1774798946177,358.84213562,0.00023,120]
[419037949,1774798981413,300.0,0.00010499,2]
[419037950,1774799007213,1500.0,9.872e-05,2]
[419037951,1774799021597,-900.0,0.000105,3]
[419037952,1774799021620,-268.0,0.000105,2]
[419037953,1774799021644,-512.99857511,0.000105,2]
[419037954,1774799021669,-199.47320477,0.000105,2]
[419037955,1774799021692,-119.52822012,0.00010573,2]
[419037956,1774799037051,-178.93015126,0.000105,2]
[419037957,1774799037073,-380.47177988,0.00010573,2]
[419037958,1774799037095,-240.0,0.00010574,2]
[419037959,1774799037117,-1200.59806886,0.00010575,2]
[419037960,1774799048765,-267.34712874,0.000105,2]
[419037961,1774799048788,-300.0,0.00010574,2]
[419037962,1774799048811,-1432.65287126,0.00010575,2]
[419037963,1774799058637,-2000.0,0.00010575,2]
[419037964,1774799069585,-1819.23535526,0.000105,2]
[419037965,1774799069609,-180.76464474,0.00010575,2]
[419037966,1774799080529,-1710.42041514,0.00010575,2]
[419037967,1774799080553,-289.57958486,0.00010575,2]
[419037968,1774799111172,425.0,0.00022631,120]
[419037969,1774799112475,425.0,0.00023763,120]
[419037970,1774799135040,-1200.0,0.00010574,2]
[419037971,1774799135063,-287.0,0.00010574,2]
[419037972,1774799135086,-107.64441514,0.00010575,2]
[419037973,1774799135108,-347.0,0.00010575,2]
[419037974,1774799135129,-58.35558486,0.00010575,2]
[419037975,1774799184805,974.94,0.00010062,2]
[419037976,1774799190570,700.0,9.88e-05,2]
[419037977,1774799236497,500.0,0.00023,120]
[419037978,1774799236593,2500.0,0.00023,120]
[419037979,1774799236735,1300.0,0.00023,120]
[419037980,1774799237063,2500.0,0.00023,120]
[419037981,1774799237209,1300.0,0.00023,120]
[419037982,1774799237531,2500.0,0.00023,120]
[419037983,1774799238143,1300.0,0.00023,120]
[419037984,1774799238253,2500.0,0.00023,120]
[419037985,1774799238487,2500.0,0.00023,120]
[419037986,1774799238654,1300.0,0.00023,120]
[419037987,1774799238955,2500.0,0.00023,120]
[419037988,1774799239272,1300.0,0.00023,120]
[419037989,1774799239408,1000.0,0.00023,120]
[419037990,1774799239438,2500.0,0.00023,120]
[419037991,1774799239749,1300.0,0.00023,120]
[419037992,1774799239917,2500.0,0.00023,120]
[419037993,1774799240236,1300.0,0.00023,120]
[419037994,1774799240328,1000.0,0.00023,120]
[419037995,1774799240399,2500.0,0.00023,120]
[419037996,1774799240697,500.0,0.00023,120]
[419037997,1774799240725,1300.0,0.00023,120]
[419037998,1774799240864,2500.0,0.00023,120]
[419037999,1774799241155,500.0,0.00023,120]
[419038000,1774799241182,1300.0,0.00023,120]
[419038001,1774799241217,1000.0,0.00023,120]
[419038002,1774799241333,2500.0,0.00023,120]
[419038003,1774799241400,226.96843314,0.00023,120]
[419038004,1774799241642,1300.0,0.00023,120]
[419038005,1774799241671,500.0,0.00023,120]
[419038006,1774799244015,1000.0,0.00023,120]
[419038007,1774799244069,2500.0,0.00023,120]
[419038008,1774799244129,500.0,0.00023,120]
[419038009,1774799244163,1300.0,0.00023,120]
[419038010,1774799244192,1000.0,0.00023,120]
[419038011,1774799244225,2500.0,0.00023,120]
[419038012,1774799244280,1300.0,0.00023,120]
[419038013,1774799244312,500.0,0.00023,120]
[419038014,1774799244345,1000.0,0.00023,120]
[419038015,1774799244379,2500.0,0.00023,120]
[419038016,1774799244425,1000.0,0.00023,120]
[419038017,1774799244460,1300.0,0.00023,120]
[419038018,1774799244504,500.0,0.00023,120]
[419038019,1774799244565,1000.0,0.00023,120]
[419038020,1774799244595,1300.0,0.00023,120]
[419038021,1774799244637,658.61824413,0.00023,120]
[419038022,1774799244682,2500.0,0.00023,120]
[419038023,1774799244751,1300.0,0.00023,120]
[419038024,1774799244841,2500.0,0.00023,120]
[419038025,1774799244890,1000.0,0.00023,120]
[419038026,1774799244934,2500.0,0.00023,120]
[419038027,1774799244994,1000.0,0.00023,120]
[419038028,1774799245242,2500.0,0.00023,120]
[419038029,1774799245355,1000.0,0.00023,120]
[419038030,1774799245864,2500.0,0.00023,120]
[419038031,1774799246100,1300.0,0.00023,120]
[419038032,1774799246132,1000.0,0.00023,120]
[419038033,1774799246332,2500.0,0.00023,120]
[419038034,1774799246568,1300.0,0.00023,120]
[419038035,1774799246989,1000.0,0.00023,120]
[419038036,1774799247052,1300.0,0.00023,120]
[419038037,1774799247474,1000.0,0.00023,120]
[419038038,1774799247665,2500.0,0.00023,120]
[419038039,1774799247955,535.08241186,0.00023,120]
[419038040,1774799260840,-311.90498353,0.000105,2]
[419038041,1774799260866,-1688.09501647,0.000105,3]
[419038042,1774799266861,-811.90498353,0.000105,3]
[419038043,1774799266885,-500.64843314,0.00010573,2]
[419038044,1774799266911,-500.0,0.00010573,2]
[419038045,1774799266936,-187.44658333,0.00010573,2]
[419038046,1774799271891,825.07,9.937e-05,2]
[419038047,1774799271913,475.83,9.937e-05,2]
[419038048,1774799278849,-178.93015126,0.000105,2]
[419038049,1774799278872,-312.55341667,0.00010573,2]
[419038050,1774799278895,-500.32969063,0.00010573,2]
[419038051,1774799278917,-500.0,0.00010573,2]
[419038052,1774799278941,-500.0,0.00010573,2]
[419038053,1774799278963,-8.18674144,0.00010573,2]
[419038056,1774799432169,-341.99905006,0.000105,2]
[419038057,1774799432179,-59.62213209,0.000105,2]
[419038058,1774799432191,-380.0,0.000105,2]
[419038059,1774799432202,-732.5,0.000105,2]
[419038060,1774799432213,-40.70143807,0.000105,2]
[419038061,1774799432223,-1074.79745841,0.000105,2]
[419038062,1774799432232,-268.0,0.000105,2]
[419038063,1774799432241,-488.28110352,0.00010571,2]
[419038064,1774799432325,-711.71889648,0.00010571,2]
[419038065,1774799432335,-300.0,0.00010572,2]
[419038066,1774799432344,-202.19237926,0.00010574,2]
[419038067,1774799432356,-97.80762074,0.00010574,2]
[419038068,1774799432365,-300.0,0.00010574,2]
[419038069,1774799432375,-300.0,0.00010574,2]
[419038070,1774799432384,-227.96110352,0.00010574,2]
[419038071,1774799432397,-72.03889648,0.00010574,2]
[419038072,1774799432406,-9384.0,0.00010575,2]
[419038073,1774799432416,-19611.67006725,0.00010584,2]
[419038074,1774799432425,-217.99545149,0.0001059,2]
[419038075,1774799432435,-150.0,0.00010593,2]
[419038076,1774799432445,-151.0,0.00010594,2]
[419038077,1774799432455,-151.0,0.00010594,2]
[419038078,1774799432464,-151.0,0.00010594,2]
[419038079,1774799432474,-151.0,0.00010594,2]
[419038080,1774799432485,-151.0,0.00010594,2]
[419038081,1774799432495,-151.0,0.00010594,2]
[419038082,1774799432505,-151.0,0.00010594,2]
[419038083,1774799432515,-151.0,0.00010594,2]
[419038084,1774799432524,-500.0,0.00010594,2]
[419038085,1774799432534,-151.0,0.00010594,2]
[419038086,1774799432543,-500.0,0.00010594,2]
[419038087,1774799432553,-151.0,0.00010594,2]
[419038088,1774799432562,-500.0,0.00010594,2]
[419038089,1774799432572,-151.0,0.00010594,2]
[419038090,1774799432582,-500.0,0.00010594,2]
[419038091,1774799432591,-500.0,0.00010594,2]
[419038092,1774799432601,-500.0,0.00010594,2]
[419038093,1774799432611,-500.0,0.00010594,2]
[419038094,1774799432620,-500.0,0.00010594,2]
[419038095,1774799432629,-500.0,0.00010594,2]
[419038096,1774799432639,-500.0,0.00010594,2]
[419038097,1774799432648,-500.0,0.00010594,2]
[419038098,1774799432658,-151.0,0.00010594,2]
[419038099,1774799432667,-151.0,0.00010594,2]
[419038100,1774799432677,-151.0,0.00010594,2]
[419038101,1774799432687,-1447.0,0.00010594,2]
[419038102,1774799432696,-151.0,0.00010594,2]
[419038103,1774799432705,-500.0,0.00010594,2]
[419038104,1774799432714,-151.0,0.00010594,2]
[419038105,1774799432724,-500.0,0.00010594,2]
[419038106,1774799432734,-151.0,0.00010594,2]
[419038107,1774799432743,-200.0,0.00010594,2]
[419038108,1774799432752,-500.0,0.00010594,2]
[419038109,1774799432762,-151.0,0.00010594,2]
[419038110,1774799432772,-151.0,0.00010594,2]
[419038111,1774799432781,-500.0,0.00010594,2]
[419038112,1774799432791,-151.0,0.00010594,2]
[419038113,1774799432801,-500.0,0.00010594,2]
[419038114,1774799432810,-151.0,0.00010594,2]
[419038115,1774799432820,-500.0,0.00010594,2]
[419038116,1774799432831,-151.0,0.00010594,2]
[419038117,1774799432843,-500.0,0.00010594,2]
[419038118,1774799432853,-151.0,0.00010594,2]
[419038119,1774799432863,-500.0,0.00010594,2]
[419038120,1774799432872,-151.0,0.00010594,2]
[419038121,1774799432882,-500.0,0.00010594,2]
[419038122,1774799432891,-151.0,0.00010594,2]
[419038123,1774799432901,-500.0,0.00010594,2]
[419038124,1774799432911,-151.0,0.00010594,2]
[419038125,1774799432921,-151.0,0.00010594,2]
[419038126,1774799432931,-500.0,0.00010594,2]
[419038127,1774799432941,-151.0,0.00010594,2]
[419038128,1774799432950,-151.0,0.00010594,2]
[419038129,1774799432960,-151.0,0.00010594,2]
[419038130,1774799432970,-200.40403933,0.00010594,2]
[419038131,1774799432979,-1386.78395259,0.00010594,2]
[419038132,1774799432988,-151.0,0.00010594,2]
[419038133,1774799432998,-151.0,0.00010597,2]
[419038134,1774799433007,-151.0,0.00010597,2]
[419038135,1774799433016,-151.0,0.00010597,2]
[419038136,1774799433026,-151.0,0.00010597,2]
[419038137,1774799433036,-157.9582,0.00010597,2]
[419038138,1774799433047,-151.0,0.00010597,2]
[419038139,1774799433057,-500.0,0.00010599,2]
[419038140,1774799433067,-1072.39562732,0.00010599,3]
[419038141,1774799433077,-1072.39562732,0.00010599,3]
[419038142,1774799433088,-65841.92557116,0.00010599,2]
[419038143,1774799438206,-1662.67,0.00010599,2]
[419038144,1774799438330,-146279.20112535,0.00010599,2]
[419038145,1774799438340,-184.51307914,0.00010599,2]
[419038146,1774799438350,-500.0,0.00010599,2]
[419038147,1774799438365,-500.0,0.00010599,2]
[419038148,1774799438375,-500.0,0.00010599,2]
[419038149,1774799438386,-443.6766262,0.00010599,2]
[419038150,1774799438396,-500.0,0.00010599,2]
[419038151,1774799438406,-500.0,0.00010599,2]
[419038152,1774799438416,-356.05173268,0.00010599,2]
[419038153,1774799438426,-500.0,0.00010599,2]
[419038154,1774799438436,-604.92219005,0.00010599,2]
[419038155,1774799438447,-500.0,0.00010599,2]
[419038156,1774799438457,-500.0,0.00010599,2]
[419038157,1774799438467,-196.79419924,0.00010599,2]